Workbook

Sheet דוגמאות מרצה שאלות 1-6
I5: ערך נוכחי (PV) | U5: ערך נוכחי סדרתי (PV) המשך...(אופיר מאגדי-מרצה למימון)
F7: שאלה 1 | S7: שאלה 5
I12: נתונים:
I13: 2000 | J13: FV | K13: סכום חד-פעמי
I14: 3% | J14: r | K14: ריבית שנתית
I15: 2 | J15: n | K15: מספר השנים
U16: סעיף א'
I17: סעיף א: | J17: =I13/1.03^I15 -> ₪1,885 | U17: נתונים
I18: סעיף ב: | J18: =PV(I14,I15,,I13) -> -₪1,885 | U18: 2000 | V18: PMT | W18: שכר בסוף כל שנה
U19: 4% | V19: r | W19: ריבית שנתית
U20: 5 | V20: n | W20: מספר שנים
F21: שאלה 2 | U21: 0 | V21: Type | W21: תחילת / סוף שנה
V23: =PV(U19,U20,U18,,) -> ₪ -8,903.64 | W23: הסכום המינימאלי היום (PV) | X23: הערה: למרות שזהו הסכום אותו תקבל היום - הסכום במינוס כי הפונקציה מתוכנתת שהערך במינוס אם הנתון בפלוס
U25: סעיף ב'
U26: נתונים
U27: -2000 | V27: PMT | W27: שכר בסוף כל שנה
I28: נתונים: | U28: 4% | V28: r | W28: ריבית שנתית
I29: 1000 | J29: FV | U29: 5 | V29: n | W29: מספר שנים
I30: 2% | J30: r | U30: 1 | V30: Type | W30: תחילת / סוף שנה
I31: 4 | J31: n
V32: =FV(U28,U29,U27,,U30) -> ₪ 11,265.95 | W32: הסכום המינימאלי היום (PV)
I33: סעיף 1: | J33: =PV(I30,I31,,I29) -> -₪923.85
I34: סעיף 2:
I35: אחוז ההנחה: | J35: 5%
I36: שווי לאחר הנחה: | J36: =I29*(1-J35) -> 950 | S36: שאלה 6
I37: תשובה: | J37: עדיף תשלום באשראי
F40: שאלה 3
U42: נתונים
U44: 0.5% | V44: r | W44: ריבית חודשית
U45: 25 | V45: n | W45: מספר שנים
U46: =U45*12 -> 300 | V46: n | W46: המרה לחודשים
U47: 3500 | V47: PMT | W47: גובה החזר חודשי
J48: =PV(N51,M51,,-O51) -> ₪ 3,738.32 | K48: P.V3 | L48: =J54+O48 -> ₪ 16,668.10 | M48: 1 | N48: 1.00% | O48: 2000 | P48: שנה 1 | U48: 0 | V48: Type | W48: תחילת / סוף חודש
L49: =J51+L50 -> ₪ 15,108.14 | M49: 1 | N49: 3.00% | O49: 2000 | P49: שנה 2
L50: =J48+O50 -> ₪ 7,738.32 | M50: 1 | N50: 5.00% | O50: 4000 | P50: שנה 3 | V50: =PV(U44,U46,U47,,U48) -> ₪ -543,224.02 | W50: סכום המשכנתא (PV)
J51: =PV(N50,M50,,-L50) -> ₪ 7,369.83 | K51: P.V 2 | M51: 1 | N51: 7.00% | O51: 4000 | P51: שנה4
J54: =PV(N49,M49,,-L49) -> ₪ 14,668.10 | K54: P.V 1
J58: =PV(N48,M48,,-L48) -> ₪ 16,503.07 | K58: P.V0
I66: שלב 1- חילוץ הריבית:
I67: -36000 | J67: PV | K67: סכום לזמן 2 על הציר
I68: 40068 | J68: FV | K68: סכום לזמן 4 על הציר
I69: 2 | J69: n
I70: =RATE(I69,,I67,I68) -> 5.499% | J70: r?
I72: שלב 2 - מציאת הסכום שיופקד היום:
I73: =I67 -> -36000 | J73: FV | K73: זמן 2 על הציר | L73: =I68 -> 40068
I74: 2 | J74: n | L74: 4
I75: =I70 -> 5.499% | J75: r | L75: =I70 -> 5.499%
I76: =PV(I75,I74,,I73) -> ₪32,345.01 | J76: PV? | K76: זמן 0 על הציר | L76: =PV(L75,L74,,L73) -> ₪ -32,345.01

Sheet תרגול עצמי שאלות 7-9
I1: ערך נוכחי (PV)
F4: שאלה 7
I9: נתונים:
I10: סכום פרעון | J10: 80000 | K10: FV
I11: שנים | J11: 6 | K11: n
I12: ריבית | J12: 2.500% | K12: r
J13: =PV(J12,J11,,J10) -> ₪ -68,983.75 | K13: PV
F33: שאלה 8 | I33: בעל הפתיע את אישתו במתנת יום הולדת: מייבש כביסה איכותי! בעל החנות הציע לזוג לשלם את המוצר שעלותו 2000 ש"ח
I34: ב-2 תשלומים באופן הבא: תשלום ראשון בעוד 3 חודשים מהיום בסכום של 1000 ש"ח והתשלום השני יבוצע בעוד 6 חודשים
I35: מהיום בסכום של 1000 ש"ח, לחילופין, הזוג יכול לשלם במסומן היום, 1,450 ש"ח. מה יעדיף הזוג? הנח ריבית חודשית 2%.
I41: נתונים: | N41: 2.00% | O41: R
I42: תשלום 1 | J42: 1000 | K42: =PV(N41,N42,,J42) -> ₪ -942.32 | L42: PV1 | M42: תשלום 1 | N42: 3 | O42: N
I43: תשלום 2 | J43: 1000 | K43: =PV(N41,N43,,J43) -> ₪ -887.97 | L43: PV2 | M43: תשלום 2 | N43: 6 | O43: N
I44: ריבית | K44: =K42+K43 -> ₪ -1,830.29 | L44: שניהם יחד
I45: תקופה 1
I46: תקופה 2
O47: 1450 | P47: CASH
I61: ליעד צפוי לקבל 5,000 ש"ח בעוד 3 שנים בסיום לימודיו. הריבית השנתית 4% בשנתיים הראשונות, ו- 2% בשנה השלישית
I62: מה הערך הנוכחי של ליעד?
F64: שאלה 9
I65: שלב א
I66: 4.00% | J66: R | K66: 2.00%
I67: 3 | J67: N
I68: 5000 | J68: FV
I69: 0 | J69: PMT
I70: =PV(K66,K70,,I68) -> ₪ -4,901.96 | J70: PV 2 | K70: 1
I71: =PV(I66,2,,I70) -> ₪ 4,532.14 | J71: PV 0

Sheet שאלות לתרגול 10-14
F3: שאלה 10
L11: 44000 | M11: FV
L12: 5 | M12: N
L13: =PV(L14,L12,,L11) -> ₪ -37,954.79 | M13: PV
L14: 3.00% | M14: R
F32: שאלה 11
J41: שלב ראשון מציאת ריבית
K42: -26000 | L42: PV 2 | M42: 2
K43: 29113.57 | L43: FV 5 | M43: 5
K44: 3 | L44: N
K45: 0 | L45: PMT
K46: =RATE(K44,,K42,K43) -> 3.84% | L46: R
J49: שלב שני מציאת PV0
K50: =PV(K46,M42,,K42) -> ₪ 24,111.56
K51: =PV(K46,M43,,K43) -> ₪ -24,111.56
F64: שאלה 12
L75: -100000 | M75: PV
L76: 140000 | M76: FV
L77: 3 | M77: N
L78: =RATE(L77,,L75,L76) -> 11.87%
F102: שאלה 13
L115: 4 | M115: N
L116: 15000 | M116: FV
L117: 1.00% | M117: R1 | N117: 1
L118: 2.00% | M118: R2 | N118: 1
L119: 3.00% | M119: R3,4 | N119: 2
K121: שלב 1 | L121: =PV(L119,N119,,L116) -> ₪ -14,138.94 | M121: PV2
K122: שלב 2 | L122: =PV(L118,N118,,L121) -> ₪ 13,861.70 | M122: PV1
K123: שלב 3 | L123: =PV(L117,N117,,L122) -> ₪ -13,724.46 | M123: PV0
F139: שאלה 14
K145: תאריך | L145: סכום הכסף בשקלים | Q145: 1 | R145: N
K146: 2019-12-31 | L146: 8,500 | M146: =FV(Q146,Q145,,-L146) -> ₪ 8,840.00 | Q146: 4.00% | R146: R
K147: 2020-12-31 | L147: 9,000 | M147: =L147 -> 9,000 | Q147: 0 | R147: PMT
K148: 2021-12-31 | L148: 9,500 | M148: =PV(Q146,Q145,,-L148) -> ₪ 9,134.62
M149: =SUM(M146:M148) -> ₪ 26,974.62

Sheet תרגיל בית 15-18
F4: שאלה 15 | I4: מזל טוב!!! שושי התקשרה אלייך ממפעל הפיס ומאפשרת לך לבחור באחת מבין 4 החלופות שלהלן:
I5: א. קבלת סכום של 100,000 ש"ח היום
I6: ב. קבלת סכום של 150,000 ש"ח בעוד 7 שנים מהיום
I7: ג. קבלת סכום של 50,000 ש"ח היום ועוד 90,000 ש"ח בעוד 6 שנים מהיום
I8: ד. קבלת סכום של 60,000 ש"ח בעוד 4 שנים ועוד סכום של 70,000 ש"ח בעוד 5 שנים.
I9: בהנחה ושיעור הריבית השנתית שלך הינה 6% איזו חלופה תעדיף?
L11: D | N11: C | P11: B | R11: A
L13: =PV(O18,K25,,-K24) -> ₪ 47,525.62 | N13: =PV(O18,M22,,-M21)+M20 -> ₪ 113,446.45 | P13: =PV(O18,O16,,-O17) -> ₪ 99,758.57 | R13: =100000 -> 100000
L14: =PV(O18,K26,,-J24) -> ₪ 52,308.07
L15: =SUM(L13:L14) -> ₪ 99,833.69
O16: 7 | P16: N
O17: 150000 | P17: FV
O18: 6.00% | P18: R
M20: 50000 | N20: PV
M21: 90000 | N21: FV
M22: 6 | N22: N
J24: 70000 | K24: 60000 | L24: FV
K25: 4 | L25: N
K26: 5 | L26: N
I34: מחירה של דירה ברחוב הזמיר 5 בעיר יבנה בעוד 8 שנים (ע"פ הערכת השמאי: אופיר מאגדי) תהיה: 1,580,000 ש"ח
F35: שאלה 16 | I35: א. מהו הסכום החד פעמי שעלייך להפקיד היום בתוכנית חיסכון נושאת ריבית שנתית בגובה 3% ע"מ
I36: שבבוא העת תוכל לרכוש את הדירה המיוחלת?
I37: ב. הנח כי אתה מבצע הפקדה ראשונית היום של 600,000 ש"ח בתוכנית חיסכון נושאת ריבית שנתית בגובה
I38: של 5%, מהו הסכום שתצטרך להפקיד בעוד 5 שנים ע"מ שבעוד 8 שנים תוכל לרכוש את הנכס ביבנה?
I40: A | J40: 8 | K40: N
J41: 1580000 | K41: FV
J42: 3.00% | K42: R
J43: 0 | K43: PMT
J44: =PV(J42,J40,,J41) -> ₪ -1,247,266.59 | K44: PV
I47: B
J48: 8 | K48: N
J49: =FV(J50,J48,,J52) -> ₪ -760,062.05 | K49: FV | M49: =J41+J49 -> ₪ 819,937.95
J50: =J42 -> 3.00% | K50: R
J51: 0 | K51: PMT
J52: 600000 | K52: PV
J54: 3 | K54: N
J55: =M49 -> ₪ 819,937.95 | K55: FV
J56: =J42 -> 3.00% | K56: R
J57: 0 | K57: PMT
J58: =PV(J56,J54,,J55) -> ₪ -750,359.38 | K58: PV
I69: בתאריך 1.1.20 הוצגו לפנייך ההמחאות הבאות:
J70: סכום המחאה | K70: תאריך פירעון | L70: N | M70: FV | N70: PV
F71: שאלה 17 | J71: 2600 ש"ח | K71: 30.6.2020 | L71: 6 | M71: 2600 | N71: =PV(M$75,L71,,-M71) -> ₪ 2,449.32
J72: 2801 ש"ח | K72: 31.3.2020 | L72: 3 | M72: 2801 | N72: =PV(M$75,L72,,-M72) -> ₪ 2,718.62
J73: 2000 ש"ח | K73: 30.9.2020 | L73: 9 | M73: 2000 | N73: ₪ 1,828.68
J74: 3603 ש"ח | K74: 31.12.2020 | L74: 12 | M74: 3603 | N74: ₪ 3,197.48
I75: הריבית החודשית 1% | M75: 1.00% | N75: =SUM(N71:N74) -> ₪ 10,194.10
I76: א. חשב את הערך הנוכחי בתאריך 1.1.20 של כל המחאה.
I77: ב. מה צריך להיות הסכום הנקוב על גבי המחאה אשר צפויה להיפרע ב 30.6.2020? | P77: =FV(M75,L71,,-N75) -> ₪ 10,821.24
I99: אופיר אמור לקבל מענק שחרור מצה"ל בעוד 3 שנים ע"ס 25,000 ש"ח (כהוקרה על 10 שנות שירות בצוות אוויר בחה"א)
F100: שאלה 18 | I100: חשב את ערכו הנוכחי של המענק בהינתן שיעורי הריבית הבאים:
I101: בשנה הראשונה 2%, בשנה השנייה 4%, בשנה השלישית 5%.
I102: מה משמעות הסכום שקיבלת?
I105: 2.00% | J105: R1
I106: 4.00% | J106: R2
I107: 5.00% | J107: R3
I108: 25000 | J108: FV
I109: 1 | J109: N
I110: =PV(I107,I109,,I108) -> ₪ -23,809.52 | J110: PV2
I111: =PV(I106,I109,,I110) -> ₪ 22,893.77 | J111: PV1
I112: =PV(I105,I109,,I111) -> ₪ -22,444.88 | J112: PV0
